fUST/lending_fUST_20260409
["ID","MTS","AMOUNT","RATE_DAILY","PERIOD"]
[420155495,1775735445295,-600.0,0.0002,2]
[420155497,1775735445305,-720.0,0.0002,2]
[420155499,1775735445315,-1040.0,0.0002,2]
[420155501,1775735445325,-1000.0,0.0002,2]
[420155503,1775735445335,-900.0,0.0002,2]
[420155505,1775735445344,-1300.0,0.0002,2]
[420155507,1775735445354,-800.0,0.0002,2]
[420155509,1775735445365,-896.62,0.0002,2]
[420155512,1775735445375,-900.0,0.0002,2]
[420155514,1775735445385,-1011.41,0.0002,2]
[420155516,1775735445394,-1010.0,0.0002,2]
[420155518,1775735445405,-1110.0,0.0002,2]
[420155520,1775735445415,-1601.06,0.0002,2]
[420155522,1775735445426,-700.0,0.0002,2]
[420155551,1775735445707,-1054.28,0.0002,2]
[420155553,1775735445717,-2398.4119403,0.00020104,2]
[420155555,1775735445726,-1295.97,0.00020264,2]
[420155557,1775735445736,-1001.66,0.00020264,2]
[420155559,1775735445745,-500.0,0.00020264,2]
[420155561,1775735445755,-1999.0437067,0.000203,2]
[420155563,1775735445764,-1000.0,0.000204,2]
[420155564,1775735445774,-1351.34,0.00020471,2]
[420155566,1775735445784,-249.124962,0.00020476,7]
[420155568,1775735445794,-1000.0,0.000205,2]
[420155570,1775735445805,-224.707705,0.0002053,7]
[420155572,1775735445815,-1000.0,0.000206,2]
[420155574,1775735445825,-2487.15318209,0.00020652,2]
[420155576,1775735445834,-1000.0,0.000207,2]
[420155578,1775735445844,-160.0,0.0002074,3]
[420155580,1775735445854,-1295.97,0.00020743,2]
[420155582,1775735445864,-1001.66,0.00020743,2]
[420155584,1775735445874,-500.0,0.00020743,2]
[420155586,1775735445882,-1312.88,0.00020774,2]
[420155588,1775735445892,-325.1735551,0.00020798,2]
[420155590,1775735445901,-300.0,0.00020855,2]
[420155592,1775735445911,-276.0,0.00020855,2]
[420155594,1775735445920,-256.0,0.00020855,2]
[420155596,1775735445929,-587.0,0.00020855,2]
[420155598,1775735445938,-152.0,0.00020855,2]
[420155600,1775735445948,-500.0,0.00020889,2]
[420155603,1775735445957,-500.0,0.00020889,2]
[420155605,1775735445966,-1350.62,0.00020892,2]
[420155607,1775735445975,-500.0,0.00020914,2]
[420155608,1775735445984,-800.0,0.00020923,2]
[420155610,1775735445994,-800.0,0.00020932,2]
[420155613,1775735446004,-2447.0740303,0.00020949,2]
[420155616,1775735446013,-500.0,0.00020966,2]
[420155618,1775735446023,-500.0,0.00020966,2]
[420155620,1775735446033,-500.0,0.00020966,2]
[420155622,1775735446043,-800.0,0.00020974,2]
[420155624,1775735446052,-800.0,0.00020974,2]
[420155626,1775735446062,-800.0,0.00020977,2]
[420155628,1775735446071,-1295.97,0.00020987,2]
[420155630,1775735446081,-1001.66,0.00020987,2]
[420155632,1775735446090,-500.0,0.00020987,2]
[420155634,1775735446101,-4785.0,0.00021,2]
[420155636,1775735446111,-161.0,0.00021,3]
[420155638,1775735446120,-161.0,0.00021,3]
[420155640,1775735446130,-800.0,0.00021026,2]
[420155642,1775735446139,-800.0,0.00021027,2]
[420155644,1775735446149,-2986.76,0.00021028,2]
[420155646,1775735446158,-800.0,0.0002103,2]
[420155648,1775735446168,-224.40077656,0.00021038,2]
[420155650,1775735446177,-500.0,0.00021072,2]
[420155652,1775735446186,-800.0,0.00021073,2]
[420155654,1775735446196,-157.9580544,0.00021076,2]
[420155656,1775735446206,-800.0,0.00021097,2]
[420155658,1775735446215,-721.56,0.00021109,2]
[420155660,1775735446224,-721.56,0.00021109,2]
[420155662,1775735446234,-721.56,0.00021109,2]
[420155664,1775735446251,-721.56,0.00021109,2]
[420155666,1775735446272,-721.56,0.00021109,2]
[420155668,1775735446288,-721.56,0.00021109,2]
[420155670,1775735446298,-721.56,0.00021109,2]
[420155672,1775735446307,-721.56,0.00021109,2]
[420155674,1775735446316,-721.56,0.00021109,2]
[420155675,1775735446325,-721.56,0.00021109,2]
[420155678,1775735446336,-721.56,0.00021109,2]
[420155679,1775735446346,-721.56,0.00021109,2]
[420155681,1775735446355,-721.56,0.00021109,2]
[420155683,1775735446364,-1059.6,0.00021109,2]
[420155685,1775735446373,-500.0,0.00021116,2]
[420155687,1775735446384,-612.62740183,0.00021116,2]
[420155689,1775735446393,-800.0,0.0002113,2]
[420155691,1775735446402,-500.0,0.00021135,2]
[420155692,1775735446412,-1295.97,0.00021137,2]
[420155694,1775735446421,-1001.66,0.00021137,2]
[420155696,1775735446431,-500.0,0.00021137,2]
[420155698,1775735446441,-800.0,0.00021142,2]
[420155700,1775735446450,-252.096573,0.00021145,2]
[420155702,1775735446460,-596.23761001,0.00021145,2]
[420155704,1775735446469,-1480.15,0.00021151,2]
[420155706,1775735446478,-2100.0,0.00021197,2]
[420155708,1775735446488,-2579.17784983,0.000212,2]
[420155710,1775735446497,-3744.21930377,0.00021203,2]
[420155712,1775735446507,-720.0,0.00021236,10]
[420155714,1775735446516,-1500.0,0.00021308,2]
[420155715,1775735446525,-151.0,0.000214,3]
[420155717,1775735446535,-1000.0,0.00021435,2]
[420155719,1775735446544,-502.24424742,0.00021437,2]
[420155721,1775735446554,-1480.0,0.00021439,2]
[420155723,1775735446563,-1100.0,0.0002145,2]
[420155725,1775735446572,-170.20205606,0.00021499,13]
[420155727,1775735446581,-1000.0,0.00021514,2]
[420155729,1775735446590,-1000.0,0.00021514,2]
[420155731,1775735446599,-1000.0,0.00021514,2]
[420155733,1775735446609,-1295.97,0.00021522,2]
[420155734,1775735446619,-1001.66,0.00021522,2]
[420155736,1775735446628,-501.26068762,0.00021522,2]
[420155738,1775735446639,-222.08953002,0.00021523,120]
[420155740,1775735446647,-151.0,0.000216,4]
[420155742,1775735446657,-1000.0,0.0002162,2]
[420155744,1775735446666,-502.04061485,0.00021664,2]
[420155746,1775735446676,-503.06663606,0.00021683,2]
[420155747,1775735446685,-2674.60743027,0.00021748,2]
[420155748,1775735446694,-195.0,0.0002179,2]
[420155749,1775735446703,-1295.97,0.00021798,2]
[420155750,1775735446713,-1001.66,0.00021798,2]
[420155751,1775735446722,-1295.97,0.00021799,2]
[420155752,1775735446732,-1295.97,0.00021799,2]
[420155753,1775735446741,-1295.97,0.00021799,2]
[420155754,1775735446751,-1295.97,0.00021799,2]
[420155755,1775735446760,-1295.97,0.00021799,2]
[420155756,1775735446770,-1295.98983,0.00021799,2]
[420155757,1775735446779,-1001.66,0.00021799,2]
[420155758,1775735446789,-1001.66,0.00021799,2]
[420155759,1775735446798,-1001.66,0.00021799,2]
[420155760,1775735446808,-1001.66,0.00021799,2]
[420155761,1775735446817,-1001.66,0.00021799,2]
[420155762,1775735446827,-1001.66221655,0.00021799,2]
[420155763,1775735446837,-50000.0,0.000218,2]
[420155764,1775735446847,-20169.38056048,0.000218,7]
[420155765,1775735446872,-920.32817028,0.000218,7]
[420155766,1775735446964,-450.72,0.00016746,2]
[420155767,1775735446974,-450.72,0.00018746,2]
[420155768,1775735446984,-450.72,0.00020746,2]
[420155769,1775735446994,-1661.0,0.00020914,7]
[420155770,1775735447005,-9492.0,0.00020914,7]
[420155771,1775735447015,-4836.29126924,0.000218,7]
[420155772,1775735447024,-400.0,0.000218,3]
[420155773,1775735447034,-151.0,0.000218,3]
[420155774,1775735447043,-300.0,0.00021855,2]
[420155775,1775735447053,-276.0,0.00021855,2]
[420155776,1775735447063,-256.0,0.00021855,2]
[420155777,1775735447072,-587.0,0.00021855,2]
[420155778,1775735447082,-152.0,0.00021855,2]
[420155779,1775735447091,-205.8,0.00021871,2]
[420155780,1775735447102,-170.20205606,0.00021882,15]
[420155781,1775735447112,-2059.29,0.00021907,2]
[420155783,1775735447122,-310.4337557,0.00021918,2]
[420155785,1775735447131,-151.0,0.00021918,2]
[420155787,1775735447141,-151.0,0.00021918,2]
[420155789,1775735447151,-151.0,0.00021918,2]
[420155791,1775735447160,-151.0,0.00021918,2]
[420155793,1775735447170,-151.0,0.00021918,2]
[420155795,1775735447179,-151.0,0.00021918,2]
[420155797,1775735447189,-151.0,0.00021918,2]
[420155799,1775735447199,-151.0,0.00021918,2]
[420155801,1775735447209,-151.0,0.00021918,2]
[420155803,1775735447218,-151.0,0.00021918,2]
[420155805,1775735447228,-151.0,0.00021918,2]
[420155807,1775735447237,-158.942269,0.00021918,2]
[420155809,1775735447246,-151.0,0.00021918,2]
[420155811,1775735447256,-151.0,0.00021918,2]
[420155813,1775735447265,-151.0,0.00021918,2]
[420155815,1775735447275,-151.0,0.00021918,2]
[420155817,1775735447285,-151.0,0.00021918,2]
[420155819,1775735447294,-151.0,0.00021918,2]
[420155821,1775735447303,-152.652398,0.00021918,2]
[420155823,1775735447312,-151.0,0.00021918,2]
[420155825,1775735447322,-151.0,0.00021918,2]
[420155827,1775735447332,-151.0,0.00021918,2]
[420155829,1775735447341,-151.0,0.00021918,2]
[420155831,1775735447350,-151.0,0.00021918,2]
[420155833,1775735447359,-151.0,0.00021918,2]
[420155835,1775735447368,-151.0,0.00021918,2]
[420155837,1775735447378,-151.0,0.00021918,2]
[420155839,1775735447387,-151.0,0.00021918,2]
[420155841,1775735447396,-151.0,0.00021918,2]
[420155843,1775735447405,-151.0,0.00021918,2]
[420155845,1775735447415,-151.0,0.00021918,2]
[420155847,1775735447424,-151.0,0.00021918,2]
[420155848,1775735447433,-151.0,0.00021918,2]
[420155850,1775735447442,-151.0,0.00021918,2]
[420155852,1775735447451,-151.0,0.00021918,2]
[420155854,1775735447460,-151.0,0.00021918,2]
[420155856,1775735447469,-227.812933,0.00021918,2]
[420155858,1775735447478,-151.0,0.00021918,2]
[420155860,1775735447488,-151.0,0.00021918,2]
[420155862,1775735447497,-151.0,0.00021918,2]
[420155864,1775735447506,-151.0,0.00021918,2]
[420155866,1775735447515,-151.0,0.00021918,2]
[420155868,1775735447524,-189.257865,0.00021918,2]
[420155870,1775735447533,-196.346023,0.00021918,2]
[420155872,1775735447542,-196.346023,0.00021918,2]
[420155874,1775735447552,-196.346023,0.00021918,2]
[420155876,1775735447562,-196.346023,0.00021918,2]
[420155878,1775735447571,-196.346023,0.00021918,2]
[420155880,1775735447581,-196.346023,0.00021918,2]
[420155882,1775735447590,-196.346023,0.00021918,2]
[420155884,1775735447600,-196.346023,0.00021918,2]
[420155886,1775735447609,-196.346023,0.00021918,2]
[420155888,1775735447618,-196.346023,0.00021918,2]
[420155890,1775735447627,-196.346023,0.00021918,2]
[420155892,1775735447636,-196.346023,0.00021918,2]
[420155894,1775735447645,-196.346023,0.00021918,2]
[420155895,1775735447654,-196.346023,0.00021918,2]
[420155897,1775735447664,-196.346023,0.00021918,2]
[420155899,1775735447674,-196.346023,0.00021918,2]
[420155901,1775735447683,-196.346023,0.00021918,2]
[420155903,1775735447692,-196.346023,0.00021918,2]
[420155905,1775735447701,-282.55598,0.00021918,2]
[420155907,1775735447710,-196.346023,0.00021918,2]
[420155909,1775735447719,-282.55598,0.00021918,2]
[420155911,1775735447731,-196.346029,0.00021918,2]
[420155913,1775735447740,-282.55598,0.00021918,2]
[420155915,1775735447750,-282.55598,0.00021918,2]
[420155917,1775735447759,-282.55598,0.00021918,2]
[420155919,1775735447769,-282.55598,0.00021918,2]
[420155921,1775735447778,-282.55598,0.00021918,2]
[420155923,1775735447788,-282.55598,0.00021918,2]
[420155925,1775735447797,-282.55598,0.00021918,2]
[420155927,1775735447806,-282.55598,0.00021918,2]
[420155929,1775735447816,-282.55598,0.00021918,2]
[420155931,1775735447826,-282.55598,0.00021918,2]
[420155933,1775735447835,-282.55598,0.00021918,2]
[420155935,1775735447844,-282.55598,0.00021918,2]
[420155937,1775735447853,-282.55598,0.00021918,2]
[420155939,1775735447863,-282.55598,0.00021918,2]
[420155941,1775735447872,-282.55598,0.00021918,2]
[420155943,1775735447882,-282.55598,0.00021918,2]
[420155945,1775735447891,-282.55598,0.00021918,2]
[420155947,1775735447901,-282.555983,0.00021918,2]
[420155949,1775735447911,-214.236296,0.00021918,2]
[420155951,1775735447920,-214.236296,0.00021918,2]
[420155953,1775735447930,-214.236296,0.00021918,2]
[420155955,1775735447940,-214.236296,0.00021918,2]
[420155957,1775735447949,-214.236296,0.00021918,2]
[420155959,1775735447958,-214.236296,0.00021918,2]
[420155961,1775735447968,-214.236296,0.00021918,2]
[420155963,1775735447978,-214.236296,0.00021918,2]
[420155965,1775735447986,-214.236296,0.00021918,2]
[420155967,1775735447996,-214.236296,0.00021918,2]
[420155969,1775735448006,-214.236296,0.00021918,2]
[420155971,1775735448015,-214.236296,0.00021918,2]
[420155973,1775735448024,-214.236296,0.00021918,2]
[420155975,1775735448034,-214.236296,0.00021918,2]
[420155977,1775735448043,-214.236296,0.00021918,2]
[420155979,1775735448053,-214.236296,0.00021918,2]
[420155981,1775735448062,-214.236296,0.00021918,2]
[420155983,1775735448071,-214.236296,0.00021918,2]
[420155985,1775735448081,-214.236296,0.00021918,2]
[420155987,1775735448091,-5911.139302,0.00021918,2]
[420155988,1775735448100,-214.236292,0.00021918,2]
[420155990,1775735448109,-151.0,0.00021918,2]
[420155992,1775735448119,-5911.139302,0.00021918,2]
[420155994,1775735448129,-151.0,0.00021918,2]
[420155996,1775735448139,-5911.139302,0.00021918,2]
[420155998,1775735448149,-151.0,0.00021918,2]
[420156001,1775735448158,-5911.139302,0.00021918,2]
[420156003,1775735448168,-239.000916,0.00021918,2]
[420156005,1775735448178,-5911.139302,0.00021918,2]
[420156007,1775735448188,-5911.139302,0.00021918,2]
[420156008,1775735448197,-5911.139302,0.00021918,2]
[420156010,1775735448207,-5911.139302,0.00021918,2]
[420156012,1775735448217,-5911.139302,0.00021918,2]
[420156014,1775735448226,-5911.139302,0.00021918,2]
[420156016,1775735448236,-5911.139302,0.00021918,2]
[420156018,1775735448245,-1356.01729311,0.00021918,2]
[420156021,1775735448260,-2049.15,0.00021918,2]
[420159090,1775736041366,5000.0,0.0001,10]
[420159091,1775736044092,-405.91256309,0.0001,2]
[420159092,1775736338806,-594.08743691,0.00023101,120]
[420159093,1775736338843,-222.08953003,0.00024074,120]
[420159094,1775736338891,-275.54,0.00029989,120]
[420159095,1775736338921,-275.54,0.00029989,120]
[420159096,1775736338950,-2303.71037086,0.00029999,120]
[420159097,1775736338979,-244.0,0.0003,120]
[420159098,1775736339009,-1085.0326622,0.0003,120]
[420159124,1775736446609,3262.56664186,0.0001,10]
[420159131,1775736620072,28918.99278363,7.6e-05,2]
[420159143,1775736635815,-188.17487382,0.0001,2]
[420159144,1775736635824,-1929.38454188,0.0001,2]
[420159146,1775736635834,-594.08743691,0.00011008,2]
[420159148,1775736635843,-594.08743691,0.00012016,7]
[420159150,1775736635852,-952.35903868,0.000125,2]
[420159152,1775736635862,-205.24073344,0.00012923,2]
[420159153,1775736635872,-300.0,0.00012972,2]
[420159154,1775736635881,-214.0,0.00012972,2]
[420159155,1775736635890,-500.0,0.00012973,2]
[420159156,1775736635900,-255.41575154,0.00012973,2]
[420159157,1775736635910,-99.24570681,0.00012973,2]
[420159477,1775736639303,-400.75429319,0.00012973,2]
[420159479,1775736639313,-500.0,0.00012973,2]
[420159481,1775736639323,-613.26257123,0.00012999,2]
[420159483,1775736639333,-500.0,0.00012999,2]
[420159485,1775736639343,-500.0,0.00012999,2]
[420159487,1775736639353,-500.0,0.00012999,2]
[420159489,1775736639362,-500.0,0.00012999,2]
[420159491,1775736639371,-500.0,0.00012999,2]
[420159493,1775736639381,-500.0,0.00012999,2]
[420159495,1775736639391,-500.0,0.00012999,2]
[420159497,1775736639401,-500.0,0.00012999,2]
[420159499,1775736639411,-580.24406246,0.00012999,2]
[420159501,1775736639420,-500.0,0.00012999,2]
[420159504,1775736639431,-500.0,0.00012999,2]
[420159506,1775736639441,-500.0,0.00012999,2]
[420159508,1775736639451,-500.0,0.00012999,2]
[420159509,1775736639460,-500.0,0.00012999,2]
[420159511,1775736639470,-500.0,0.00012999,2]
[420159513,1775736639480,-500.0,0.00012999,2]
[420159516,1775736639490,-500.0,0.00012999,2]
[420159518,1775736639500,-500.0,0.00012999,2]
[420159520,1775736639509,-500.0,0.00012999,2]
[420159522,1775736639519,-500.0,0.00012999,2]
[420159524,1775736639529,-500.0,0.00012999,2]
[420159526,1775736639538,-500.0,0.00012999,2]
[420159528,1775736639548,-1253.77477141,0.00012999,2]
[420159530,1775736639557,-1253.77477141,0.00012999,2]
[420159532,1775736639567,-1253.77477141,0.00012999,2]
[420159534,1775736639576,-814.20085589,0.00012999,2]
[420159536,1775736639590,-439.57391552,0.00012999,2]
[420159538,1775736639600,-1253.77477141,0.00012999,2]
[420159540,1775736639609,-1253.77477141,0.00012999,2]
[420159542,1775736639619,-1253.77477141,0.00012999,2]
[420159544,1775736639628,-1253.77477141,0.00012999,2]
[420159546,1775736639638,-1253.77477141,0.00012999,2]
[420159548,1775736639647,-1253.77477141,0.00012999,2]
[420159550,1775736639657,-1253.77477141,0.00012999,2]
[420159552,1775736639667,-1253.77477141,0.00012999,2]
[420159554,1775736639676,-1253.77477141,0.00012999,2]
[420159556,1775736639686,-237.82855183,0.00012999,2]
[420159558,1775736639698,-1015.94621958,0.00012999,2]
[420159560,1775736639707,-1299.36658127,0.00012999,2]
[420159562,1775736639717,-1299.36658127,0.00012999,2]
[420159564,1775736639726,-1299.36658127,0.00012999,2]
[420159566,1775736639736,-904.26618676,0.00012999,2]
[420160216,1775736647180,-395.10039451,0.00012999,2]
[420160218,1775736647189,-1299.36658127,0.00012999,2]
[420160220,1775736647199,-1299.36658127,0.00012999,2]
[420160222,1775736647208,-1299.36658127,0.00012999,2]
[420160224,1775736647218,-1299.36658127,0.00012999,2]
[420160226,1775736647227,-1299.36658127,0.00012999,2]
[420160228,1775736647236,-1299.36658127,0.00012999,2]
[420160230,1775736647244,-1299.36658127,0.00012999,2]
[420160232,1775736647254,-604.0,0.00012999,2]
[420160234,1775736647263,-6596.65505417,0.00013,2]
[420161172,1775737832806,-5000.0,0.00011709,2]
[420161174,1775737832817,-204.67,0.00011828,2]
[420161176,1775737832827,-226.0,0.00012361,2]
[420161178,1775737832837,-300.0,0.00012362,2]
[420161180,1775737832847,-300.0,0.00012362,2]
[420161182,1775737832856,-300.0,0.00012362,2]
[420161184,1775737832866,-105.93638372,0.00012363,2]
[420161236,1775737841566,-4499.55094622,0.00012239,2]
[420161237,1775737841576,-4894.06361628,0.00012363,2]
[420161238,1775737841586,-1819.70883608,0.000129,2]
[420161239,1775737841595,-500.0,0.00012973,2]
[420161240,1775737841605,-500.0,0.00012973,2]
[420161241,1775737841614,-500.0,0.00012973,2]
[420161242,1775737841624,-361.93138708,0.00012973,2]
[420161243,1775737841633,-500.0,0.00012973,2]
[420161244,1775737841642,-500.0,0.00012973,2]
[420161245,1775737841653,-904.1104444,0.00012999,2]
[420161246,1775737841662,-543.13789461,0.00012999,2]
[420161247,1775737841672,-500.0,0.00012999,2]
[420161248,1775737841681,-500.0,0.00012999,2]
[420161249,1775737841691,-500.0,0.00012999,2]
[420161250,1775737841699,-500.0,0.00012999,2]
[420161251,1775737841709,-500.0,0.00012999,2]
[420161252,1775737841718,-500.0,0.00012999,2]
[420161253,1775737841728,-649.61856279,0.00012999,2]
[420161254,1775737841737,-500.0,0.00012999,2]
[420161255,1775737841746,-172.89448615,0.00012999,2]
[420161256,1775737841757,-327.10551385,0.00012999,2]
[420161257,1775737841767,-500.0,0.00012999,2]
[420161258,1775737841776,-102.47714505,0.00012999,2]
[420161259,1775737841798,-397.52285495,0.00012999,2]
[420161260,1775737841807,-500.0,0.00012999,2]
[420161261,1775737841816,-500.0,0.00012999,2]
[420161262,1775737841825,-500.0,0.00012999,2]
[420161263,1775737841835,-500.0,0.00012999,2]
[420161264,1775737841844,-500.0,0.00012999,2]
[420161265,1775737841854,-500.0,0.00012999,2]
[420161266,1775737841863,-500.0,0.00012999,2]
[420161267,1775737841873,-448.07714505,0.00012999,2]
[420161280,1775737844316,-51.92285495,0.00012999,2]
[420161281,1775737844326,-404.73299396,0.00012999,2]
[420161282,1775737844335,-500.0,0.00012999,2]
[420161283,1775737844344,-500.0,0.00012999,2]
[420161284,1775737844354,-1104.91614185,0.00012999,2]
[420161285,1775737844365,-38.64177574,0.00012999,2]
[420161286,1775737844375,-1143.55791759,0.00012999,2]
[420161287,1775737844384,-825.0329367,0.00012999,2]
[420161288,1775737844396,-318.52498089,0.00012999,2]
[420161289,1775737844405,-1143.55791759,0.00012999,2]
[420161290,1775737844414,-1037.59445517,0.00012999,2]
[420161291,1775737844426,-105.96346242,0.00012999,2]
[420161292,1775737844436,-1143.55791759,0.00012999,2]
[420161293,1775737844445,-1143.55791759,0.00012999,2]
[420161294,1775737844456,-654.59183728,0.00012999,2]
[420161295,1775737844467,-488.96608031,0.00012999,2]
[420161296,1775737844476,-283.0239219,0.00012999,2]
[420161300,1775737846989,-860.53399569,0.00012999,2]
[420161301,1775737847000,-1143.55791759,0.00012999,2]
[420161302,1775737847009,-1143.55791759,0.00012999,2]
[420161303,1775737847019,-1143.55791759,0.00012999,2]
[420161304,1775737847028,-1143.55791759,0.00012999,2]
[420161305,1775737847038,-1200.73581347,0.00012999,2]
[420161306,1775737847048,-564.02886139,0.00012999,2]
[420161307,1775737847059,-636.70695208,0.00012999,2]
[420161308,1775737847068,-1200.73581347,0.00012999,2]
[420161309,1775737847078,-1200.73581347,0.00012999,2]
[420161310,1775737847087,-1200.73581347,0.00012999,2]
[420161311,1775737847097,-1200.73581347,0.00012999,2]
[420161312,1775737847107,-1200.73581347,0.00012999,2]
[420161313,1775737847116,-1200.73581347,0.00012999,2]
[420161314,1775737847126,-1200.73581347,0.00012999,2]
[420161315,1775737847136,-1212.74317163,0.00012999,2]
[420161316,1775737847146,-1212.74317163,0.00012999,2]
[420161317,1775737847157,-165.8223228,0.00012999,2]
[420161318,1775737847167,-3155.6535358,0.00012999,2]
[420161319,1775737847176,-12152.06954843,0.00013,2]
[420161320,1775737862593,-2030.25913678,0.00012794,2]
[420161427,1775739006964,163.79,0.0001,10]
[420161451,1775739031943,-1349.64553418,0.00011685,2]
[420161453,1775739031956,-1421.2607696,0.00011685,2]
[420161456,1775739031968,-2229.09369622,0.00011685,2]
[420161458,1775739031978,-300.0,0.00011922,2]
[420161459,1775739031987,-300.0,0.00011999,2]
[420161462,1775739031998,-70.1919012,0.00011999,2]
[420161464,1775739032015,-679.45363298,0.00011999,2]
[420161485,1775739040930,-1000.0,0.00011568,2]
[420161486,1775739040942,-912.62077253,0.00011568,2]
[420161509,1775739042244,-85.92406197,0.00011568,2]
[420161510,1775739042254,-135.35446582,0.00011999,2]
[420161511,1775739042264,-96.68419342,0.00012,2]
[420161512,1775739042276,-4380.98068409,0.00012,2]
[420161537,1775739043363,-500.0,0.00012,2]
[420161538,1775739043375,-686.34512249,0.00012,2]
[420161539,1775739043385,-1000.0,0.00012794,2]
[420161540,1775739043395,-1592.24523157,0.000129,2]
[420161542,1775739043404,-820.9629336,0.00012923,2]
[420161543,1775739043413,-500.0,0.00012973,2]
[420161544,1775739043424,-500.0,0.00012973,2]
[420161545,1775739043434,-500.0,0.00012973,2]
[420161546,1775739043444,-500.0,0.00012973,2]
[420161547,1775739043454,-500.0,0.00012973,2]
[420161548,1775739043464,-380.19652622,0.00012999,2]
[420161549,1775739043474,-500.0,0.00012999,2]
[420161550,1775739043484,-500.0,0.00012999,2]
[420161551,1775739043494,-48.12174356,0.00012999,2]
[420161552,1775739046335,-451.87825644,0.00012999,2]
[420161553,1775739046345,-234.96980917,0.00012999,2]
[420161554,1775739046358,-265.03019083,0.00012999,2]
[420161555,1775739046367,-500.0,0.00012999,2]
[420161556,1775739046377,-500.0,0.00012999,2]
[420161557,1775739046386,-500.0,0.00012999,2]
[420161558,1775739046396,-333.31309577,0.00012999,2]
[420161559,1775739046405,-500.0,0.00012999,2]
[420161560,1775739046415,-500.0,0.00012999,2]
[420161561,1775739046424,-500.0,0.00012999,2]
[420161562,1775739046434,-500.0,0.00012999,2]
[420161563,1775739046443,-500.0,0.00012999,2]
[420161564,1775739046452,-500.0,0.00012999,2]
[420161565,1775739046462,-300.0,0.00012999,2]
[420161566,1775739046473,-862.57430166,0.00012999,2]
[420161567,1775739046482,-862.57430166,0.00012999,2]
[420161568,1775739046492,-862.57430166,0.00012999,2]
[420161569,1775739046501,-862.57430166,0.00012999,2]
[420161570,1775739046510,-862.57430166,0.00012999,2]
[420161571,1775739046520,-862.57430166,0.00012999,2]
[420161572,1775739046529,-862.57430166,0.00012999,2]
[420161573,1775739046539,-862.57430166,0.00012999,2]
[420161574,1775739046549,-862.57430166,0.00012999,2]
[420161576,1775739046558,-862.57430166,0.00012999,2]
[420161578,1775739046568,-862.57430166,0.00012999,2]
[420161580,1775739046577,-862.57430166,0.00012999,2]
[420161581,1775739046588,-862.57430166,0.00012999,2]
[420161582,1775739046597,-862.57430166,0.00012999,2]
[420161583,1775739046607,-862.57430166,0.00012999,2]
[420161584,1775739046616,-391.88622543,0.00012999,2]
[420161585,1775739046628,-470.68807623,0.00012999,2]
[420161586,1775739046638,-862.57430166,0.00012999,2]
[420161587,1775739046647,-879.82578769,0.00012999,2]
[420161588,1775739046657,-879.82578769,0.00012999,2]
[420161589,1775739046667,-879.82578769,0.00012999,2]
[420161590,1775739046677,-879.82578769,0.00012999,2]
[420161591,1775739046686,-879.82578769,0.00012999,2]
[420161592,1775739046696,-879.82578769,0.00012999,2]
[420161593,1775739046706,-879.82578769,0.00012999,2]
[420161594,1775739046715,-339.40500822,0.00012999,2]
[420161595,1775739046730,-528.79904169,0.00012999,2]
[420161739,1775740232228,-876.86326639,0.0001057,2]
[420161777,1775740238517,-458.50900941,0.0001057,2]
[420161778,1775740238528,-1241.75956593,0.00010785,2]
[420161779,1775740238538,-362.68420886,0.00011861,2]
[420161780,1775740238548,-1000.0,0.000127,2]
[420161781,1775740238557,-1465.2762878,0.00012785,2]
[420161782,1775740238567,-1000.0,0.00012869,2]